fUST/lending_fUST_20250408
["ID","MTS","AMOUNT","RATE_DAILY","PERIOD"]
[357445244,1744069846257,-500.0,0.00022739,2]
[357445245,1744069846267,-543.0,0.00022739,2]
[357445246,1744069846278,-1782.29,0.00022739,2]
[357445247,1744069846287,-500.0,0.00022739,2]
[357445248,1744069846296,-500.0,0.00022739,2]
[357445249,1744069846305,-500.0,0.00022739,2]
[357445250,1744069846315,-500.0,0.00022739,2]
[357445251,1744069846324,-500.0,0.00022739,2]
[357445252,1744069846334,-500.0,0.00022739,2]
[357445253,1744069846345,-500.0,0.00022739,2]
[357445254,1744069846354,-346.01436417,0.00022739,2]
[357445255,1744069846364,-701.32,0.00022739,2]
[357445256,1744069846374,-500.0,0.00022739,2]
[357445257,1744069846384,-988.39,0.00022739,2]
[357445258,1744069846394,-500.0,0.00022739,2]
[357445259,1744069846403,-500.0,0.00022739,2]
[357445260,1744069846413,-1362.09,0.00022739,2]
[357445261,1744069846423,-500.0,0.00022739,2]
[357445262,1744069846432,-500.0,0.00022739,2]
[357445263,1744069846441,-500.0,0.00022739,2]
[357445264,1744069846450,-500.0,0.00022739,2]
[357445265,1744069846460,-500.0,0.00022739,2]
[357445266,1744069846469,-500.0,0.00022739,2]
[357445267,1744069846479,-882.89,0.00022739,2]
[357445268,1744069846488,-500.0,0.00022739,2]
[357445269,1744069846500,-500.0,0.00022739,2]
[357445270,1744069846510,-500.0,0.00022739,2]
[357445271,1744069846520,-500.0,0.00022739,2]
[357445272,1744069846529,-773.83,0.00022739,2]
[357445273,1744069846538,-500.0,0.00022739,2]
[357445274,1744069846548,-1227.37,0.00022739,2]
[357445275,1744069846557,-520.09,0.00022739,2]
[357445276,1744069846567,-500.0,0.00022739,2]
[357445277,1744069846576,-500.0,0.00022739,2]
[357445278,1744069846586,-500.0,0.00022739,2]
[357445279,1744069846596,-2645.71,0.00022739,2]
[357445280,1744069846606,-500.0,0.00022739,2]
[357445281,1744069846615,-500.0,0.00022739,2]
[357445282,1744069846625,-2088.39,0.00022739,2]
[357445283,1744069846635,-500.0,0.00022739,2]
[357445284,1744069846645,-660.58,0.00022739,2]
[357445285,1744069846655,-500.0,0.00022739,2]
[357445286,1744069846664,-500.0,0.00022739,2]
[357445287,1744069846674,-500.0,0.00022739,2]
[357445288,1744069846684,-500.0,0.00022739,2]
[357445289,1744069846694,-2511.32,0.00022739,2]
[357445290,1744069846704,-500.0,0.00022739,2]
[357445291,1744069846713,-500.0,0.00022739,2]
[357445292,1744069846723,-500.0,0.00022739,2]
[357445293,1744069846733,-500.0,0.00022739,2]
[357445294,1744069846746,-1217.19,0.00022739,2]
[357445295,1744069846755,-1414.71,0.00022739,2]
[357445296,1744069846765,-1240.98,0.00022739,2]
[357445297,1744069846775,-845.92,0.00022739,2]
[357445298,1744069846785,-500.0,0.00022739,2]
[357445299,1744069846794,-1232.44,0.00022739,2]
[357445300,1744069846804,-500.0,0.00022739,2]
[357445301,1744069846813,-1157.64,0.00022739,2]
[357445302,1744069846823,-4737.12,0.00022739,2]
[357445303,1744069846833,-576.29,0.00022739,2]
[357445304,1744069846843,-500.0,0.00022739,2]
[357445305,1744069846854,-200.0,0.00022739,2]
[357445306,1744069846864,-1002.91,0.00022739,2]
[357445307,1744069846873,-2320.11,0.00022739,2]
[357445308,1744069846883,-500.0,0.00022739,2]
[357445309,1744069846893,-500.0,0.00022739,2]
[357445310,1744069846903,-500.0,0.00022739,2]
[357445311,1744069846913,-1535.19,0.00022739,2]
[357445312,1744069846930,-500.0,0.00022739,2]
[357445313,1744069846940,-500.0,0.00022739,2]
[357445314,1744069846951,-500.0,0.00022739,2]
[357445315,1744069846961,-500.0,0.00022739,2]
[357445316,1744069846973,-500.0,0.00022739,2]
[357445317,1744069846983,-500.0,0.00022739,2]
[357445318,1744069846995,-500.0,0.00022739,2]
[357445319,1744069847005,-500.0,0.00022739,2]
[357445320,1744069847016,-3065.26,0.00022739,2]
[357445321,1744069847025,-500.0,0.00022739,2]
[357445322,1744069847035,-500.0,0.00022739,2]
[357445323,1744069847044,-500.0,0.00022739,2]
[357445324,1744069847054,-500.0,0.00022739,2]
[357445325,1744069847063,-1377.29,0.00022739,2]
[357445326,1744069847073,-500.0,0.00022739,2]
[357445327,1744069847083,-1563.99,0.00022739,2]
[357445328,1744069847093,-171.68974358,0.00022739,2]
[357445329,1744069847102,-500.0,0.00022739,2]
[357445330,1744069847112,-500.0,0.00022739,2]
[357445331,1744069847122,-500.0,0.00022739,2]
[357445332,1744069847131,-500.0,0.00022739,2]
[357445333,1744069847141,-500.0,0.00022739,2]
[357445334,1744069847150,-500.0,0.00022739,2]
[357445335,1744069847160,-1772.83,0.00022739,2]
[357445336,1744069847170,-595.15495533,0.00022739,2]
[357445337,1744069847180,-500.0,0.00022739,2]
[357445338,1744069847190,-500.0,0.00022739,2]
[357445339,1744069847199,-392.668219,0.00022739,2]
[357445340,1744069847209,-500.0,0.00022739,2]
[357445341,1744069847219,-1246.5,0.00022739,2]
[357445342,1744069847229,-1765.33,0.00022739,2]
[357445343,1744069847239,-500.0,0.00022739,2]
[357445344,1744069847249,-1937.54,0.00022739,2]
[357445345,1744069847259,-1205.59,0.00022739,2]
[357445346,1744069847270,-1239.2,0.00022739,2]
[357445347,1744069847279,-1146.31,0.00022739,2]
[357445348,1744069847289,-613.41,0.00022739,2]
[357445349,1744069847299,-500.0,0.00022739,2]
[357445350,1744069847309,-500.0,0.00022739,2]
[357445351,1744069847319,-500.0,0.00022739,2]
[357445352,1744069847329,-523.31,0.00022739,2]
[357445353,1744069847339,-500.0,0.00022739,2]
[357445354,1744069847349,-500.0,0.00022739,2]
[357445355,1744069847359,-500.0,0.00022739,2]
[357445356,1744069847369,-500.0,0.00022739,2]
[357445357,1744069847379,-995.49,0.00022739,2]
[357445358,1744069847388,-8728.42,0.00022739,2]
[357445359,1744069847398,-1073.09,0.00022739,2]
[357445360,1744069847408,-500.0,0.00022739,2]
[357445361,1744069847418,-500.0,0.00022739,2]
[357445362,1744069847428,-500.0,0.00022739,2]
[357445363,1744069847438,-2424.22,0.00022739,2]
[357445364,1744069847448,-500.0,0.00022739,2]
[357445365,1744069847457,-500.0,0.00022739,2]
[357445366,1744069847467,-559.81,0.00022739,2]
[357445367,1744069847477,-500.0,0.00022739,2]
[357445368,1744069847487,-1690.5,0.00022739,2]
[357445369,1744069847497,-500.0,0.00022739,2]
[357445370,1744069847507,-500.0,0.00022739,2]
[357445371,1744069847517,-1125.73,0.00022739,2]
[357445372,1744069847526,-808.68,0.00022739,2]
[357445373,1744069847536,-544.97,0.00022739,2]
[357445374,1744069847547,-500.0,0.00022739,2]
[357445375,1744069847558,-500.0,0.0002279,2]
[357445376,1744069847568,-500.0,0.0002279,2]
[357445377,1744069847579,-202.76778898,0.00023,2]
[357445378,1744069847589,-500.0,0.00023013,2]
[357445379,1744069847600,-500.0,0.00023013,2]
[357445380,1744069847609,-500.0,0.00023013,2]
[357445381,1744069847620,-500.0,0.00023013,2]
[357445382,1744069847629,-500.0,0.00023013,2]
[357445383,1744069847639,-500.0,0.00023013,2]
[357445384,1744069847650,-339.96220746,0.00023013,2]
[357445385,1744069847659,-500.0,0.00023013,2]
[357445386,1744069847669,-500.0,0.00023013,2]
[357445387,1744069847679,-500.0,0.00023013,2]
[357445388,1744069847689,-500.0,0.00023013,2]
[357445389,1744069847698,-500.0,0.00023013,2]
[357445390,1744069847708,-500.0,0.00023013,2]
[357445391,1744069847717,-813.25,0.00023013,2]
[357445392,1744069847727,-500.0,0.00023013,2]
[357445393,1744069847736,-500.0,0.00023013,2]
[357445394,1744069847746,-686.82,0.00023013,2]
[357445395,1744069847756,-500.0,0.00023013,2]
[357445396,1744069847765,-646.71,0.00023013,2]
[357445397,1744069847774,-500.0,0.00023013,2]
[357445398,1744069847784,-500.0,0.00023013,2]
[357445399,1744069847794,-500.0,0.00023013,2]
[357445400,1744069847803,-500.0,0.00023013,2]
[357445401,1744069847812,-500.0,0.00023013,2]
[357445402,1744069847822,-500.0,0.00023013,2]
[357445403,1744069847832,-802.81,0.00023013,2]
[357445404,1744069847841,-500.0,0.00023013,2]
[357445405,1744069847852,-500.0,0.00023013,2]
[357445406,1744069847862,-500.0,0.00023013,2]
[357445407,1744069847871,-500.0,0.00023013,2]
[357445408,1744069847881,-780.65,0.00023013,2]
[357445409,1744069847891,-500.0,0.00023013,2]
[357445410,1744069847901,-500.0,0.00023013,2]
[357445411,1744069847913,-529.74,0.00023013,2]
[357445412,1744069847924,-500.0,0.00023013,2]
[357445413,1744069847934,-500.0,0.00023013,2]
[357445414,1744069847943,-698.26,0.00023013,2]
[357445415,1744069847954,-500.0,0.00023013,2]
[357445416,1744069847964,-500.0,0.00023013,2]
[357445417,1744069847973,-500.0,0.00023013,2]
[357445418,1744069847983,-500.0,0.00023013,2]
[357445419,1744069847993,-542.8,0.00023013,2]
[357445420,1744069848005,-500.0,0.00023013,2]
[357445421,1744069848015,-500.0,0.00023013,2]
[357445422,1744069848024,-706.95,0.00023013,2]
[357445423,1744069848034,-500.0,0.00023013,2]
[357445424,1744069848043,-980.21,0.00023013,2]
[357445425,1744069848053,-500.0,0.00023013,2]
[357445426,1744069848063,-500.0,0.00023013,2]
[357445427,1744069848072,-500.0,0.00023013,2]
[357445428,1744069848082,-500.0,0.00023013,2]
[357445429,1744069848092,-500.0,0.00023013,2]
[357445430,1744069848102,-2097.53,0.00023013,2]
[357445431,1744069848112,-500.0,0.00023013,2]
[357445432,1744069848121,-500.0,0.00023013,2]
[357445433,1744069848130,-543.0,0.00023013,2]
[357445434,1744069848140,-1782.29,0.00023013,2]
[357445435,1744069848150,-500.0,0.00023013,2]
[357445436,1744069848160,-500.0,0.00023013,2]
[357445437,1744069848171,-500.0,0.00023013,2]
[357445438,1744069848181,-500.0,0.00023013,2]
[357445439,1744069848191,-500.0,0.00023013,2]
[357445440,1744069848202,-500.0,0.00023013,2]
[357445441,1744069848211,-500.0,0.00023013,2]
[357445442,1744069848221,-701.32,0.00023013,2]
[357445443,1744069848231,-500.0,0.00023013,2]
[357445444,1744069848241,-988.39,0.00023013,2]
[357445445,1744069848252,-500.0,0.00023013,2]
[357445446,1744069848262,-500.0,0.00023013,2]
[357445447,1744069848416,-1362.09,0.00023013,2]
[357445448,1744069848427,-500.0,0.00023013,2]
[357445449,1744069848438,-500.0,0.00023013,2]
[357445450,1744069848448,-500.0,0.00023013,2]
[357445451,1744069848458,-500.0,0.00023013,2]
[357445452,1744069848468,-500.0,0.00023013,2]
[357445453,1744069848478,-500.0,0.00023013,2]
[357445454,1744069848488,-882.89,0.00023013,2]
[357445455,1744069848500,-500.0,0.00023013,2]
[357445456,1744069848511,-500.0,0.00023013,2]
[357445457,1744069848521,-500.0,0.00023013,2]
[357445458,1744069848531,-375.93401115,0.00023013,2]
[357445459,1744069848542,-773.83,0.00023013,2]
[357445460,1744069848553,-500.0,0.00023013,2]
[357445461,1744069848564,-1227.37,0.00023013,2]
[357445462,1744069848574,-520.09,0.00023013,2]
[357445463,1744069848584,-500.0,0.00023013,2]
[357445464,1744069848594,-500.0,0.00023013,2]
[357445465,1744069848604,-500.0,0.00023013,2]
[357445466,1744069848614,-2645.71,0.00023013,2]
[357445467,1744069848624,-500.0,0.00023013,2]
[357445468,1744069848634,-171.25021841,0.00023013,2]
[357445469,1744069848644,-2088.39,0.00023013,2]
[357445470,1744069848655,-500.0,0.00023013,2]
[357445471,1744069848664,-660.58,0.00023013,2]
[357445472,1744069848675,-500.0,0.00023013,2]
[357445473,1744069848685,-500.0,0.00023013,2]
[357445474,1744069848695,-500.0,0.00023013,2]
[357445475,1744069848705,-500.0,0.00023013,2]
[357445476,1744069848714,-2511.32,0.00023013,2]
[357445477,1744069848724,-500.0,0.00023013,2]
[357445478,1744069848734,-500.0,0.00023013,2]
[357445479,1744069848744,-500.0,0.00023013,2]
[357445480,1744069848754,-500.0,0.00023013,2]
[357445481,1744069848765,-1217.19,0.00023013,2]
[357445482,1744069848775,-1414.71,0.00023013,2]
[357445483,1744069848785,-1240.98,0.00023013,2]
[357445484,1744069848795,-845.92,0.00023013,2]
[357445485,1744069848805,-500.0,0.00023013,2]
[357445486,1744069848815,-1232.44,0.00023013,2]
[357445487,1744069848825,-622.21025416,0.00023013,2]
[357445488,1744069848835,-1157.64,0.00023013,2]
[357445489,1744069848845,-4737.12,0.00023013,2]
[357445490,1744069848855,-576.29,0.00023013,2]
[357445491,1744069848866,-500.0,0.00023013,2]
[357445492,1744069848877,-327.38222557,0.00023013,2]
[357445493,1744069848887,-1002.91,0.00023013,2]
[357445494,1744069848898,-2320.11,0.00023013,2]
[357445495,1744069848910,-500.0,0.00023013,2]
[357445496,1744069848923,-500.0,0.00023013,2]
[357445497,1744069848933,-500.0,0.00023013,2]
[357445498,1744069848944,-1535.19,0.00023013,2]
[357445499,1744069848955,-500.0,0.00023013,2]
[357445500,1744069848964,-500.0,0.00023013,2]
[357445501,1744069848975,-500.0,0.00023013,2]
[357445502,1744069848984,-500.0,0.00023013,2]
[357445503,1744069848995,-500.0,0.00023013,2]
[357445504,1744069849005,-500.0,0.00023013,2]
[357445505,1744069849016,-500.0,0.00023013,2]
[357445506,1744069849027,-500.0,0.00023013,2]
[357445507,1744069849037,-3065.26,0.00023013,2]
[357445508,1744069849047,-500.0,0.00023013,2]
[357445509,1744069849058,-500.0,0.00023013,2]
[357445510,1744069849068,-500.0,0.00023013,2]
[357445511,1744069849078,-500.0,0.00023013,2]
[357445512,1744069849088,-1377.29,0.00023013,2]
[357445513,1744069849098,-500.0,0.00023013,2]
[357445514,1744069849108,-1563.99,0.00023013,2]
[357445515,1744069849118,-500.0,0.00023013,2]
[357445516,1744069849128,-500.0,0.00023013,2]
[357445517,1744069849138,-500.0,0.00023013,2]
[357445518,1744069849148,-500.0,0.00023013,2]
[357445519,1744069849158,-500.0,0.00023013,2]
[357445520,1744069849168,-500.0,0.00023013,2]
[357445521,1744069849178,-1772.83,0.00023013,2]
[357445522,1744069849187,-500.0,0.00023013,2]
[357445523,1744069849197,-500.0,0.00023013,2]
[357445524,1744069849207,-1246.5,0.00023013,2]
[357445525,1744069849217,-500.0,0.00023013,2]
[357445526,1744069849227,-1765.33,0.00023013,2]
[357445527,1744069849237,-500.0,0.00023013,2]
[357445528,1744069849247,-1937.54,0.00023013,2]
[357445529,1744069849257,-1205.59,0.00023013,2]
[357445530,1744069849267,-1239.2,0.00023013,2]
[357445531,1744069849279,-1146.31,0.00023013,2]
[357445532,1744069849289,-613.41,0.00023013,2]
[357445533,1744069849299,-500.0,0.00023013,2]
[357445534,1744069849308,-500.0,0.00023013,2]
[357445535,1744069849318,-500.0,0.00023013,2]
[357445536,1744069849328,-523.31,0.00023013,2]
[357445537,1744069849337,-500.0,0.00023013,2]
[357445538,1744069849347,-500.0,0.00023013,2]
[357445539,1744069849357,-500.0,0.00023013,2]
[357445540,1744069849366,-500.0,0.00023013,2]
[357445541,1744069849376,-995.49,0.00023013,2]
[357445542,1744069849386,-8728.42,0.00023013,2]
[357445543,1744069849396,-1073.09,0.00023013,2]
[357445544,1744069849407,-500.0,0.00023013,2]
[357445545,1744069849416,-500.0,0.00023013,2]
[357445546,1744069849426,-500.0,0.00023013,2]
[357445547,1744069849436,-500.0,0.00023013,2]
[357445548,1744069849445,-2424.22,0.00023013,2]
[357445549,1744069849455,-500.0,0.00023013,2]
[357445550,1744069849465,-559.81,0.00023013,2]
[357445551,1744069849475,-500.0,0.00023013,2]
[357445552,1744069849485,-1690.5,0.00023013,2]
[357445553,1744069849495,-500.0,0.00023013,2]
[357445554,1744069849504,-500.0,0.00023013,2]
[357445555,1744069849514,-1125.73,0.00023013,2]
[357445556,1744069849523,-808.68,0.00023013,2]
[357445557,1744069849533,-544.97,0.00023013,2]
[357445558,1744069849543,-500.0,0.00023013,2]
[357445559,1744069849553,-420.0,0.0002318,2]
[357445560,1744069849563,-407.87281932,0.00023187,2]
[357445561,1744069849572,-500.0,0.00023287,2]
[357445562,1744069849582,-500.0,0.00023287,2]
[357445563,1744069849592,-500.0,0.00023287,2]
[357445564,1744069849602,-500.0,0.00023287,2]
[357445565,1744069849611,-500.0,0.00023287,2]
[357445566,1744069849621,-249.82684509,0.00023287,2]
[357445567,1744069849631,-500.0,0.00023287,2]
[357445568,1744069849641,-500.0,0.00023287,2]
[357445569,1744069849651,-500.0,0.00023287,2]
[357445570,1744069849661,-500.0,0.00023287,2]
[357445571,1744069849671,-500.0,0.00023287,2]
[357445572,1744069849680,-500.0,0.00023287,2]
[357445573,1744069849690,-813.25,0.00023287,2]
[357445574,1744069849700,-500.0,0.00023287,2]
[357445575,1744069849709,-500.0,0.00023287,2]
[357445576,1744069849719,-686.82,0.00023287,2]
[357445577,1744069849729,-500.0,0.00023287,2]
[357445578,1744069849738,-646.71,0.00023287,2]
[357445579,1744069849748,-500.0,0.00023287,2]
[357445580,1744069849758,-500.0,0.00023287,2]
[357445581,1744069849767,-500.0,0.00023287,2]
[357445582,1744069849777,-500.0,0.00023287,2]
[357445583,1744069849787,-500.0,0.00023287,2]
[357445584,1744069849797,-500.0,0.00023287,2]
[357445585,1744069849806,-802.81,0.00023287,2]
[357445586,1744069849816,-500.0,0.00023287,2]
[357445587,1744069849826,-500.0,0.00023287,2]
[357445588,1744069849835,-500.0,0.00023287,2]
[357445589,1744069849845,-200.0,0.00023287,2]
[357445590,1744069849855,-509.11864566,0.00023287,2]
[357445591,1744069849864,-780.65,0.00023287,2]
[357445592,1744069849873,-500.0,0.00023287,2]
[357445593,1744069849884,-500.0,0.00023287,2]
[357445594,1744069849893,-529.74,0.00023287,2]
[357445595,1744069849904,-500.0,0.00023287,2]
[357445596,1744069849916,-500.0,0.00023287,2]
[357445597,1744069849927,-698.26,0.00023287,2]
[357445598,1744069849936,-500.0,0.00023287,2]
[357445599,1744069849948,-500.0,0.00023287,2]
[357445600,1744069849958,-500.0,0.00023287,2]
[357445601,1744069849968,-500.0,0.00023287,2]
[357445602,1744069849977,-542.8,0.00023287,2]
[357445603,1744069849988,-500.0,0.00023287,2]
[357445604,1744069849998,-500.0,0.00023287,2]
[357445605,1744069850013,-706.95,0.00023287,2]
[357445606,1744069850028,-500.0,0.00023287,2]
[357445607,1744069850042,-980.21,0.00023287,2]
[357445608,1744069850056,-500.0,0.00023287,2]
[357445609,1744069850069,-500.0,0.00023287,2]
[357445610,1744069850080,-500.0,0.00023287,2]
[357445611,1744069850093,-500.0,0.00023287,2]
[357445612,1744069850106,-2097.53,0.00023287,2]
[357445613,1744069850119,-500.0,0.00023287,2]
[357445614,1744069850132,-543.0,0.00023287,2]
[357445615,1744069850145,-1782.29,0.00023287,2]
[357445616,1744069850159,-500.0,0.00023287,2]
[357445617,1744069850171,-500.0,0.00023287,2]
[357445618,1744069850184,-500.0,0.00023287,2]
[357445619,1744069850198,-500.0,0.00023287,2]
[357445620,1744069850212,-500.0,0.00023287,2]
[357445621,1744069850224,-500.0,0.00023287,2]
[357445622,1744069850236,-500.0,0.00023287,2]
[357445623,1744069850249,-701.32,0.00023287,2]
[357445624,1744069850261,-500.0,0.00023287,2]
[357445625,1744069850273,-988.39,0.00023287,2]
[357445626,1744069850285,-500.0,0.00023287,2]
[357445627,1744069850299,-500.0,0.00023287,2]
[357445628,1744069850312,-1362.09,0.00023287,2]
[357445629,1744069850324,-500.0,0.00023287,2]
[357445630,1744069850336,-500.0,0.00023287,2]
[357445631,1744069850347,-500.0,0.00023287,2]
[357445632,1744069850359,-500.0,0.00023287,2]
[357445633,1744069850371,-500.0,0.00023287,2]
[357445634,1744069850383,-500.0,0.00023287,2]
[357445635,1744069850397,-882.89,0.00023287,2]
[357445636,1744069850410,-500.0,0.00023287,2]
[357445637,1744069850424,-500.0,0.00023287,2]
[357445638,1744069850435,-500.0,0.00023287,2]
[357445639,1744069850449,-773.83,0.00023287,2]
[357445640,1744069850463,-500.0,0.00023287,2]
[357445641,1744069850477,-1227.37,0.00023287,2]
[357445642,1744069850491,-520.09,0.00023287,2]
[357445643,1744069850505,-500.0,0.00023287,2]
[357445644,1744069850516,-500.0,0.00023287,2]
[357445645,1744069850527,-500.0,0.00023287,2]
[357445646,1744069850538,-2645.71,0.00023287,2]
[357445647,1744069850550,-500.0,0.00023287,2]
[357445648,1744069850563,-500.0,0.00023287,2]
[357445649,1744069850579,-2088.39,0.00023287,2]
[357445650,1744069850593,-500.0,0.00023287,2]
[357445651,1744069850605,-660.58,0.00023287,2]
[357445652,1744069850617,-500.0,0.00023287,2]
[357445653,1744069850629,-500.0,0.00023287,2]
[357445654,1744069850641,-500.0,0.00023287,2]
[357445655,1744069850654,-2511.32,0.00023287,2]
[357445656,1744069850667,-500.0,0.00023287,2]
[357445657,1744069850680,-500.0,0.00023287,2]
[357445658,1744069850692,-500.0,0.00023287,2]
[357445659,1744069850703,-500.0,0.00023287,2]
[357445660,1744069850715,-1217.19,0.00023287,2]
[357445661,1744069850728,-1414.71,0.00023287,2]
[357445662,1744069850739,-845.92,0.00023287,2]
[357445663,1744069850751,-1240.98,0.00023287,2]
[357445664,1744069850762,-500.0,0.00023287,2]
[357445665,1744069850774,-1232.44,0.00023287,2]
[357445666,1744069850785,-1157.64,0.00023287,2]
[357445667,1744069850797,-4737.12,0.00023287,2]
[357445668,1744069850808,-576.29,0.00023287,2]
[357445669,1744069850819,-500.0,0.00023287,2]
[357445670,1744069850831,-1002.91,0.00023287,2]
[357445671,1744069850842,-2320.11,0.00023287,2]
[357445672,1744069850853,-500.0,0.00023287,2]
[357445673,1744069850865,-500.0,0.00023287,2]
[357445674,1744069850877,-500.0,0.00023287,2]
[357445675,1744069850888,-1535.19,0.00023287,2]
[357445676,1744069850900,-500.0,0.00023287,2]
[357445677,1744069850914,-500.0,0.00023287,2]
[357445678,1744069850926,-500.0,0.00023287,2]
[357445679,1744069850938,-500.0,0.00023287,2]
[357445680,1744069850951,-500.0,0.00023287,2]
[357445681,1744069850963,-500.0,0.00023287,2]
[357445682,1744069850975,-180.02619446,0.00023287,2]
[357445683,1744069850987,-500.0,0.00023287,2]
[357445684,1744069851002,-3065.26,0.00023287,2]
[357445685,1744069851015,-500.0,0.00023287,2]
[357445686,1744069851027,-500.0,0.00023287,2]
[357445687,1744069851038,-500.0,0.00023287,2]
[357445688,1744069851050,-500.0,0.00023287,2]
[357445689,1744069851062,-1377.29,0.00023287,2]
[357445690,1744069851073,-500.0,0.00023287,2]
[357445691,1744069851086,-1563.99,0.00023287,2]
[357445692,1744069851097,-500.0,0.00023287,2]
[357445693,1744069851108,-500.0,0.00023287,2]
[357445694,1744069851120,-500.0,0.00023287,2]
[357445695,1744069851132,-500.0,0.00023287,2]
[357445696,1744069851144,-500.0,0.00023287,2]
[357445697,1744069851155,-500.0,0.00023287,2]
[357445698,1744069851167,-1772.83,0.00023287,2]
[357445699,1744069851179,-500.0,0.00023287,2]
[357445700,1744069851191,-500.0,0.00023287,2]
[357445701,1744069851203,-1246.5,0.00023287,2]
[357445702,1744069851215,-500.0,0.00023287,2]
[357445703,1744069851226,-1765.33,0.00023287,2]
[357445704,1744069851238,-500.0,0.00023287,2]
[357445705,1744069851250,-1937.54,0.00023287,2]
[357445706,1744069851262,-1205.59,0.00023287,2]
[357445707,1744069851274,-1239.2,0.00023287,2]
[357445708,1744069851286,-1146.31,0.00023287,2]
[357445709,1744069851298,-500.0,0.00023287,2]
[357445710,1744069851310,-613.41,0.00023287,2]
[357445711,1744069851321,-500.0,0.00023287,2]
[357445712,1744069851334,-500.0,0.00023287,2]
[357445713,1744069851347,-523.31,0.00023287,2]
[357445714,1744069851359,-315.44485339,0.00023287,2]
[357445715,1744069851371,-500.0,0.00023287,2]
[357445716,1744069851382,-500.0,0.00023287,2]
[357445717,1744069851394,-500.0,0.00023287,2]
[357445718,1744069851406,-995.49,0.00023287,2]
[357445719,1744069851419,-8728.42,0.00023287,2]
[357445720,1744069851431,-1073.09,0.00023287,2]
[357445721,1744069851442,-500.0,0.00023287,2]
[357445722,1744069851455,-500.0,0.00023287,2]
[357445723,1744069851467,-500.0,0.00023287,2]
[357445724,1744069851480,-500.0,0.00023287,2]
[357445725,1744069851492,-2424.22,0.00023287,2]
[357445726,1744069851506,-500.0,0.00023287,2]
[357445727,1744069851518,-559.81,0.00023287,2]
[357445728,1744069851530,-500.0,0.00023287,2]
[357445729,1744069851542,-1690.5,0.00023287,2]
[357445730,1744069851554,-500.0,0.00023287,2]
[357445731,1744069851566,-500.0,0.00023287,2]
[357445732,1744069851578,-1125.73,0.00023287,2]
[357445733,1744069851590,-544.97,0.00023287,2]
[357445734,1744069851602,-808.68,0.00023287,2]
[357445735,1744069851614,-500.0,0.00023287,2]
[357445736,1744069851626,-4500.96713119,0.000235,4]
[357445737,1744069851637,-500.0,0.00023561,2]
[357445738,1744069851649,-500.0,0.00023561,2]
[357445739,1744069851661,-500.0,0.00023561,2]
[357445740,1744069851672,-500.0,0.00023561,2]
[357445741,1744069851683,-500.0,0.00023561,2]
[357445742,1744069851696,-500.0,0.00023561,2]
[357445743,1744069851708,-500.0,0.00023561,2]